[Event "Icelandic Team-ch Kvika Leagu 2023-24"]
[Site "Reykjavik"]
[Date "2024.02.29"]
[Round "1.8"]
[White "Einarsson, Arnthor"]
[Black "Bjornsson, Tomas"]
[Result "1/2-1/2"]
[ECO "D26"]
[WhiteElo "2179"]
[BlackElo "2165"]
[Annotator "RC"]
[PlyCount "67"]
[EventDate "2024.02.29"]
[EventType "team-tourn"]
[EventCountry "ISL"]
[SourceTitle "playchess.com"]
[Source "ChessBase"]
[SourceQuality "1"]
[TimeControl "40/5400+30:900+30"]

1. d4 {[%emt 0:56:04]} d5 {[%emt 0:00:19]} 2. c4 {[%emt 0:00:00]} dxc4 {[%emt 0:00:14]} 3. e3 {[%emt 0:00:00]} Nf6 {[%emt 0:00:31]} 4. Bxc4 {[%emt 0:00:00]} e6 {[%emt 0:00:45]} 5. Nf3 {[%emt 0:00:00]} c5 {[%emt 0:01:05]} 6. O-O {[%emt 0:00:00]} Nbd7 {[%emt 0:00:39]} 7. Nc3 {[%emt 0:00:00]} Be7 {[%emt 0:01:07]} 8. a3 {[%emt 0:00:00]} cxd4 {[%emt 0:00:26]} 9. exd4 {[%emt 0:00:00]} O-O {[%emt 0:00:29]} 10. Re1 {[%emt 0:00:00]} a6 {[%emt 0:02:48]} 11. Ba2 {[%emt 0:00:00]} b5 {[%emt 0:05:50]} 12. d5 {[%emt 0:00:00]} exd5 {[%emt 0:01:17]} 13. Nxd5 {[%emt 0:00:00]} Nxd5 {[%emt 0:04:14]} 14. Bxd5 {[%emt 0:00:00]} Ra7 {[%emt 0:06:20]} 15. Nd4 {[%emt 0:00:00]} Bc5 {[%emt 0:06:18]} 16. Nc6 {[%emt 0:00:00]} Qb6 {[%emt 0:00:44]} 17. Be3 {[%emt 0:00:00]} Rc7 {[%emt 0:11:13]} 18. Rc1 {[%emt 0:02:46]} Bxe3 {[%emt 0:05:56]} 19. Rxe3 {[%emt 0:00:55]} Nf6 {[%emt 0:03:20]} 20. Bf3 {[%emt 0:10:44]} Bb7 {[%emt 0:21:02]} 21. Qd6 {[%emt 0:04:23]} Bxc6 {[%emt 0:00:33]} 22. Rxc6 {[%emt 0:03:17]} Rxc6 {[%emt 0:00:05]} 23. Qxc6 {[%emt 0:00:11]} Qd4 {[%emt 0:01:25]} 24. Qc3 {[%emt 0:01:10]} Qb6 {[%emt 0:04:24]} 25. Re7 {[%emt 0:01:27]} Qd6 {[%emt 0:04:09]} 26. Qe5 {[%emt 0:04:45]} Qd2 {[%emt 0:01:08]} 27. g4 {[%emt 0:01:18]} h6 {[%emt 0:01:37]} 28. h4 {[%emt 0:00:17]} Rc8 {[%emt 0:01:03]} 29. Ra7 {[%emt 0:08:24]} Rc2 {[%emt 0:06:35]} 30. Ra8+ {[%emt 0:00:30]} Kh7 {[%emt 0:00:04]} 31. Be4+ {[%emt 0:00:26]} g6 {[%emt 0:02:28]} 32. Qxf6 {[%emt 0:00:53]} Qe1+ {[%emt 0:00:13]} 33. Kg2 {[%emt 0:01:15]} Qxe4+ {[%emt 0:00:15]} 34. Qf3 {[%emt 0:00:01]} 1/2-1/2

[Event "Icelandic Team-ch Kvika Leagu 2023-24"]
[Site "Reykjavik"]
[Date "2024.03.01"]
[Round "1.9"]
[White "Stefansson, Hannes"]
[Black "Urkedal, Frode Olav Olsen"]
[Result "1/2-1/2"]
[ECO "C84"]
[WhiteElo "2498"]
[BlackElo "2525"]
[Annotator "ChessBase"]
[PlyCount "130"]
[EventDate "2024.02.29"]
[EventType "team-tourn"]
[EventCountry "ISL"]
[SourceTitle "playchess.com"]
[Source "ChessBase"]
[SourceQuality "1"]
[TimeControl "40/5400+30:900+30"]

1. e4 {[%emt 0:00:18]} e5 {[%emt 0:00:05]} 2. Nf3 {[%emt 0:00:26]} Nc6 {[%emt 0:00:05]} 3. Bb5 {[%emt 0:00:27]} a6 {[%emt 0:00:06]} 4. Ba4 {[%emt 0:00:17]} Nf6 {[%emt 0:00:08]} 5. O-O {[%emt 0:00:43]} Be7 {[%emt 0:00:18]} 6. d3 {[%emt 0:01:03]} b5 {[%emt 0:00:22]} 7. Bb3 {[%emt 0:00:35]} d6 {[%emt 0:00:45]} 8. a4 {[%emt 0:01:24]} Bd7 {[%emt 0:00:09]} 9. c3 {[%emt 0:01:31]} O-O {[%emt 0:00:09]} 10. Bc2 {[%emt 0:03:29]} Re8 {[%emt 0:07:27]} 11. h3 {[%emt 0:05:23]} h6 {[%emt 0:01:47]} 12. Re1 {[%emt 0:03:38]} Bf8 {[%emt 0:02:10]} 13. Nbd2 {[%emt 0:01:18]} Rb8 {[%emt 0:01:24]} 14. Nf1 {[%emt 0:12:52]} d5 {[%emt 0:03:05]} 15. axb5 {[%emt 0:06:30]} axb5 {[%emt 0:00:10]} 16. exd5 {[%emt 0:03:57]} Nxd5 {[%emt 0:01:24]} 17. Bb3 {[%emt 0:02:07]} Be6 {[%emt 0:08:26]} 18. Bd2 {[%emt 0:08:23]} Nb6 {[%emt 0:05:15]} 19. Bc2 {[%emt 0:05:27]} Bf5 {[%emt 0:03:56]} 20. Be3 {[%emt 0:04:56]} Bh7 {[%emt 0:02:45]} 21. d4 {[%emt 0:03:18]} e4 {[%emt 0:03:43]} 22. N3d2 {[%emt 0:00:16]} Nd5 {[%emt 0:11:54]} 23. f3 {[%emt 0:00:37]} exf3 {[%emt 0:01:29]} 24. Bxh7+ {[%emt 0:00:18]} Kxh7 {[%emt 0:00:11]} 25. Qxf3 {[%emt 0:00:35]} Qd7 {[%emt 0:06:30]} 26. Bf2 {[%emt 0:01:33]} Kg8 {[%emt 0:07:35]} 27. Ng3 {[%emt 0:01:03]} Rxe1+ {[%emt 0:01:41]} 28. Rxe1 {[%emt 0:00:13]} Ra8 {[%emt 0:00:21]} 29. Nb3 {[%emt 0:07:53]} Ra2 {[%emt 0:01:32]} 30. Rb1 {[%emt 0:03:37]} Nb6 {[%emt 0:01:01]} 31. Nc1 {[%emt 0:01:48]} Ra8 {[%emt 0:03:39]} 32. Nd3 {[%emt 0:00:15]} Qd5 {[%emt 0:02:25]} 33. Qg4 {[%emt 0:02:00]} Re8 {[%emt 0:03:35]} 34. Nf5 {[%emt 0:05:33]} g6 {[%emt 0:05:00]} 35. Ne3 {[%emt 0:00:28]} Qe4 {[%emt 0:01:39]} 36. Qxe4 {[%emt 0:01:01]} Rxe4 {[%emt 0:00:02]} 37. g4 {[%emt 0:01:46]} Na5 {[%emt 0:03:28]} 38. Re1 {[%emt 0:01:29]} Nac4 {[%emt 0:02:34]} 39. Nxc4 {[%emt 0:02:42]} Rxe1+ {[%emt 0:00:05]} 40. Bxe1 {[%emt 0:00:00]} Nxc4 {[%emt 0:00:00]} 41. Kf2 {[%emt 0:02:31]} Bd6 {[%emt 0:10:21]} 42. Kf3 {[%emt 0:01:05]} f5 {[%emt 0:02:49]} 43. gxf5 {[%emt 0:00:23]} gxf5 {[%emt 0:00:02]} 44. Ke2 {[%emt 0:02:44]} Kf7 {[%emt 0:01:11]} 45. Kd1 {[%emt 0:00:23]} Ke6 {[%emt 0:02:13]} 46. b3 {[%emt 0:00:19]} Nb6 {[%emt 0:01:52]} 47. Bd2 {[%emt 0:00:46]} h5 {[%emt 0:01:48]} 48. Ke2 {[%emt 0:01:25]} Kd5 {[%emt 0:02:00]} 49. Kf3 {[%emt 0:00:20]} b4 {[%emt 0:02:33]} 50. Nxb4+ {[%emt 0:01:04]} Bxb4 {[%emt 0:00:11]} 51. cxb4 {[%emt 0:00:08]} Kxd4 {[%emt 0:01:02]} 52. Kf4 {[%emt 0:01:00]} Kd3 {[%emt 0:00:28]} 53. Be1 {[%emt 0:00:18]} Kc2 {[%emt 0:00:29]} 54. h4 {[%emt 0:03:33]} Nd5+ {[%emt 0:03:34]} 55. Kxf5 {[%emt 0:04:34]} Kxb3 {[%emt 0:00:07]} 56. Kg5 {[%emt 0:03:28]} Nxb4 {[%emt 0:00:26]} 57. Kxh5 {[%emt 0:00:18]} Nd3 {[%emt 0:00:21]} 58. Kg5 {[%emt 0:03:35]} Nxe1 {[%emt 0:00:10]} 59. h5 {[%emt 0:00:05]} c5 {[%emt 0:00:42]} 60. h6 {[%emt 0:00:11]} c4 {[%emt 0:00:22]} 61. h7 {[%emt 0:00:06]} c3 {[%emt 0:00:05]} 62. h8=Q {[%emt 0:00:05]} c2 {[%emt 0:00:03]} 63. Qb8+ {[%emt 0:01:41]} Kc3 {[%emt 0:00:38]} 64. Qe5+ {[%emt 0:00:57]} Kd2 {[%emt 0:00:47]} 65. Qf4+ {[%emt 0:00:29]} Kd1 {[%emt 0:00:05]} 1/2-1/2

[Event "Icelandic Team-ch Kvika Leagu 2023-24"]
[Site "Reykjavik"]
[Date "2024.03.01"]
[Round "1.10"]
[White "Pakleza, Zbigniew"]
[Black "Gretarsson, Hjorvar Steinn"]
[Result "1-0"]
[ECO "A46"]
[WhiteElo "2482"]
[BlackElo "2530"]
[Annotator "RC"]
[PlyCount "135"]
[EventDate "2024.02.29"]
[EventType "team-tourn"]
[EventCountry "ISL"]
[SourceTitle "playchess.com"]
[Source "ChessBase"]
[SourceQuality "1"]
[TimeControl "40/5400+30:900+30"]

1. d4 {[%emt 0:00:02]} Nf6 {[%emt 0:01:44]} 2. Nf3 {[%emt 0:00:02]} e6 {[%emt 0:00:06]} 3. g3 {[%emt 0:00:14]} d5 {[%emt 0:01:26]} 4. Bg2 {[%emt 0:00:16]} b5 {[%emt 0:01:05]} 5. O-O {[%emt 0:00:17]} Be7 {[%emt 0:01:05]} 6. a4 {[%emt 0:01:02]} b4 {[%emt 0:01:28]} 7. c4 {[%emt 0:02:16]} bxc3 {[%emt 0:02:13]} 8. Nxc3 {[%emt 0:00:05]} O-O {[%emt 0:08:54]} 9. Ne5 {[%emt 0:01:53]} Ba6 {[%emt 0:10:56]} 10. Re1 {[%emt 0:19:06]} Nfd7 {[%emt 0:12:25]} 11. Nxd7 {[%emt 0:04:38]} Nxd7 {[%emt 0:01:10]} 12. e4 {[%emt 0:00:12]} c6 {[%emt 0:01:29]} 13. Bf4 {[%emt 0:06:07]} Bb4 {[%emt 0:08:07]} 14. Qc2 {[%emt 0:05:58]} Rc8 {[%emt 0:07:07]} 15. Red1 {[%emt 0:06:54]} Re8 {[%emt 0:01:49]} 16. Na2 {[%emt 0:16:10]} Bf8 {[%emt 0:02:51]} 17. Nc3 {[%emt 0:03:56]} Qa5 {[%emt 0:05:56]} 18. Rab1 {[%emt 0:02:41]} Nb6 {[%emt 0:04:05]} 19. h4 {[%emt 0:11:48]} h6 {[%emt 0:05:00]} 20. Ra1 {[%emt 0:04:26]} Red8 {[%emt 0:06:37]} 21. Bd2 {[%emt 0:02:51]} Bb4 {[%emt 0:03:47]} 22. Be1 {[%emt 0:02:41]} Nc4 {[%emt 0:03:46]} 23. Na2 {[%emt 0:04:02]} Bxe1 {[%emt 0:02:04]} 24. Rxe1 {[%emt 0:00:02]} Qb6 {[%emt 0:02:14]} 25. Bf1 {[%emt 0:03:41]} Rb8 {[%emt 0:01:29]} 26. exd5 {[%emt 0:01:08]} exd5 {[%emt 0:02:36]} 27. Qc3 {[%emt 0:00:49]} Qxb2 {[%emt 0:01:01]} 28. Re7 {[%emt 0:00:02]} Qxc3 {[%emt 0:00:51]} 29. Nxc3 {[%emt 0:00:01]} Rb7 {[%emt 0:00:53]} 30. Rxb7 {[%emt 0:01:05]} Bxb7 {[%emt 0:00:02]} 31. Bxc4 {[%emt 0:00:18]} dxc4 {[%emt 0:00:02]} 32. Rd1 {[%emt 0:00:17]} Bc8 {[%emt 0:00:31]} 33. f3 {[%emt 0:01:03]} Bf5 {[%emt 0:00:22]} 34. Ne4 {[%emt 0:00:46]} Rb8 {[%emt 0:01:45]} 35. Rc1 {[%emt 0:00:17]} Be6 {[%emt 0:00:19]} 36. Kf2 {[%emt 0:00:38]} Bd5 {[%emt 0:00:21]} 37. Ke3 {[%emt 0:00:15]} Rb2 {[%emt 0:00:20]} 38. h5 {[%emt 0:00:48]} Kf8 {[%emt 0:00:28]} 39. Nc3 {[%emt 0:00:16]} Ke7 {[%emt 0:00:23]} 40. g4 {[%emt 0:00:00]} Kd6 {[%emt 0:00:00]} 41. Ne4+ {[%emt 0:01:47]} Kc7 {[%emt 0:04:05]} 42. Kf4 {[%emt 0:03:18]} Ra2 {[%emt 0:01:23]} 43. Rg1 {[%emt 0:03:18]} Rxa4 {[%emt 0:05:14]} 44. g5 {[%emt 0:03:06]} Ra3 {[%emt 0:00:33]} 45. g6 {[%emt 0:01:55]} f5 {[%emt 0:01:07]} 46. Ng3 {[%emt 0:00:51]} Rxf3+ {[%emt 0:01:42]} 47. Ke5 {[%emt 0:00:01]} c3 {[%emt 0:04:36]} 48. Nxf5 {[%emt 0:00:21]} c2 {[%emt 0:01:16]} 49. Rc1 {[%emt 0:01:28]} Bb3 {[%emt 0:00:45]} 50. Nxg7 {[%emt 0:00:01]} Kd7 {[%emt 0:00:28]} 51. Nf5 {[%emt 0:00:25]} Rh3 {[%emt 0:00:19]} 52. d5 {[%emt 0:01:25]} Rxh5 {[%emt 0:00:37]} 53. dxc6+ {[%emt 0:01:07]} Kxc6 {[%emt 0:00:07]} 54. Kf6 {[%emt 0:00:01]} Kd7 {[%emt 0:00:59]} 55. Nd4 {[%emt 0:00:46]} Ba4 {[%emt 0:00:22]} 56. g7 {[%emt 0:00:23]} Rg5 {[%emt 0:00:36]} 57. Kf7 {[%emt 0:01:49]} Bc6 {[%emt 0:00:33]} 58. Nxc6 {[%emt 0:00:25]} Kxc6 {[%emt 0:00:10]} 59. Rxc2+ {[%emt 0:00:06]} Kb5 {[%emt 0:00:19]} 60. Rb2+ {[%emt 0:00:10]} Kc5 {[%emt 0:00:36]} 61. Ra2 {[%emt 0:00:10]} Kb6 {[%emt 0:00:13]} 62. Rh2 {[%emt 0:00:41]} Rf5+ {[%emt 0:00:29]} 63. Kg6 {[%emt 0:00:17]} Rg5+ {[%emt 0:00:09]} 64. Kxh6 {[%emt 0:01:26]} Rg3 {[%emt 0:00:58]} 65. Rh5 {[%emt 0:00:00]} Rxg7 {[%emt 0:00:18]} 66. Kxg7 {[%emt 0:00:00]} a5 {[%emt 0:00:02]} 67. Kf6 {[%emt 0:00:00]} a4 {[%emt 0:00:01]} 68. Rf5 {[%emt 0:00:13]} 1-0

[Event "Icelandic Team-ch Kvika Leagu 2023-24"]
[Site "Reykjavik"]
[Date "2024.03.01"]
[Round "1.11"]
[White "Pantzar, Milton"]
[Black "Hjartarson, Johann"]
[Result "1/2-1/2"]
[ECO "E14"]
[WhiteElo "2461"]
[BlackElo "2460"]
[Annotator "ChessBase"]
[PlyCount "159"]
[EventDate "2024.02.29"]
[EventType "team-tourn"]
[EventCountry "ISL"]
[SourceTitle "playchess.com"]
[Source "ChessBase"]
[SourceQuality "1"]
[TimeControl "40/5400+30:900+30"]

1. d4 {[%emt 0:00:05]} Nf6 {[%emt 0:00:41]} 2. Nf3 {[%emt 0:00:20]} e6 {[%emt 0:00:10]} 3. e3 {[%emt 0:01:14]} b6 {[%emt 0:00:17]} 4. Bd3 {[%emt 0:01:29]} Bb7 {[%emt 0:00:09]} 5. O-O {[%emt 0:01:32]} d5 {[%emt 0:00:33]} 6. b3 {[%emt 0:01:24]} Nbd7 {[%emt 0:01:55]} 7. c4 {[%emt 0:01:41]} Bd6 {[%emt 0:00:34]} 8. Bb2 {[%emt 0:01:20]} O-O {[%emt 0:00:11]} 9. Nbd2 {[%emt 0:01:49]} Ne4 {[%emt 0:04:05]} 10. Qc2 {[%emt 0:02:59]} f5 {[%emt 0:01:15]} 11. cxd5 {[%emt 0:02:44]} exd5 {[%emt 0:01:02]} 12. Ne5 {[%emt 0:00:39]} Ndf6 {[%emt 0:13:58]} 13. f3 {[%emt 0:06:21]} Nxd2 {[%emt 0:00:18]} 14. Qxd2 {[%emt 0:00:06]} g6 {[%emt 0:00:28]} 15. b4 {[%emt 0:11:12]} c6 {[%emt 0:05:57]} 16. Bc3 {[%emt 0:23:51]} Qe7 {[%emt 0:01:49]} 17. Rab1 {[%emt 0:03:10]} Rae8 {[%emt 0:10:38]} 18. Qb2 {[%emt 0:02:30]} Ba8 {[%emt 0:06:44]} 19. Rfe1 {[%emt 0:06:24]} c5 {[%emt 0:04:19]} 20. Bb5 {[%emt 0:01:55]} cxb4 {[%emt 0:03:26]} 21. Bxb4 {[%emt 0:00:40]} Bxb4 {[%emt 0:00:11]} 22. Qxb4 {[%emt 0:00:22]} Qxb4 {[%emt 0:00:09]} 23. Rxb4 {[%emt 0:00:05]} Rc8 {[%emt 0:00:09]} 24. Ba6 {[%emt 0:10:51]} Rc2 {[%emt 0:01:00]} 25. a4 {[%emt 0:02:20]} Ne8 {[%emt 0:15:49]} 26. Ra1 {[%emt 0:02:17]} Nd6 {[%emt 0:11:10]} 27. a5 {[%emt 0:02:36]} bxa5 {[%emt 0:03:04]} 28. Rxa5 {[%emt 0:00:13]} Rc1+ {[%emt 0:02:09]} 29. Kf2 {[%emt 0:00:13]} Re8 {[%emt 0:07:12]} 30. Bd3 {[%emt 0:03:32]} Rc7 {[%emt 0:00:17]} 31. g4 {[%emt 0:03:48]} fxg4 {[%emt 0:00:26]} 32. Nxg4 {[%emt 0:00:06]} Kg7 {[%emt 0:01:08]} 33. Ra6 {[%emt 0:01:34]} Nf7 {[%emt 0:01:27]} 34. Rb1 {[%emt 0:01:50]} Ree7 {[%emt 0:01:23]} 35. h4 {[%emt 0:01:03]} Bc6 {[%emt 0:00:58]} 36. Rg1 {[%emt 0:02:24]} Bd7 {[%emt 0:01:44]} 37. h5 {[%emt 0:00:31]} Bc8 {[%emt 0:01:16]} 38. Ra5 {[%emt 0:01:23]} Ng5 {[%emt 0:00:36]} 39. h6+ {[%emt 0:00:25]} Kf8 {[%emt 0:00:13]} 40. Rga1 {[%emt 0:00:00]} Bxg4 {[%emt 0:00:00]} 41. fxg4 {[%emt 0:01:06]} Red7 {[%emt 0:01:52]} 42. Rb1 {[%emt 0:04:18]} Nf7 {[%emt 0:01:22]} 43. Rb8+ {[%emt 0:04:04]} Ke7 {[%emt 0:00:38]} 44. Rbb5 {[%emt 0:02:29]} Ke6 {[%emt 0:04:38]} 45. Ra6+ {[%emt 0:00:30]} Rd6 {[%emt 0:00:29]} 46. Rba5 {[%emt 0:01:00]} Nxh6 {[%emt 0:01:00]} 47. Rxd6+ {[%emt 0:02:00]} Kxd6 {[%emt 0:00:04]} 48. Kf3 {[%emt 0:00:52]} Nf7 {[%emt 0:00:54]} 49. Ra6+ {[%emt 0:00:35]} Ke7 {[%emt 0:00:14]} 50. Kf4 {[%emt 0:00:26]} Rb7 {[%emt 0:06:11]} 51. Be2 {[%emt 0:00:55]} Nd8 {[%emt 0:01:56]} 52. Ke5 {[%emt 0:01:04]} Rd7 {[%emt 0:00:02]} 53. g5 {[%emt 0:00:59]} Nf7+ {[%emt 0:00:21]} 54. Kf4 {[%emt 0:00:04]} Nd8 {[%emt 0:00:58]} 55. Bg4 {[%emt 0:00:49]} Rc7 {[%emt 0:00:02]} 56. Bf3 {[%emt 0:01:05]} Ne6+ {[%emt 0:01:16]} 57. Ke5 {[%emt 0:00:22]} Nxg5 {[%emt 0:00:12]} 58. Bxd5 {[%emt 0:00:04]} Rd7 {[%emt 0:00:37]} 59. Ba2 {[%emt 0:01:35]} Rb7 {[%emt 0:00:59]} 60. Kf4 {[%emt 0:00:48]} Nh3+ {[%emt 0:01:26]} 61. Kg3 {[%emt 0:00:26]} Ng5 {[%emt 0:00:39]} 62. Kg4 {[%emt 0:00:27]} Nf7 {[%emt 0:00:36]} 63. Bxf7 {[%emt 0:00:27]} Kxf7 {[%emt 0:00:02]} 64. d5 {[%emt 0:00:17]} Re7 {[%emt 0:00:30]} 65. Kf3 {[%emt 0:00:26]} g5 {[%emt 0:00:39]} 66. e4 {[%emt 0:00:14]} h5 {[%emt 0:00:33]} 67. Rh6 {[%emt 0:01:47]} a5 {[%emt 0:00:27]} 68. Rxh5 {[%emt 0:00:47]} Kf6 {[%emt 0:00:20]} 69. Ke3 {[%emt 0:00:22]} a4 {[%emt 0:00:38]} 70. Rh6+ {[%emt 0:00:14]} Ke5 {[%emt 0:01:20]} 71. Rg6 {[%emt 0:00:28]} a3 {[%emt 0:00:13]} 72. Rxg5+ {[%emt 0:00:04]} Kf6 {[%emt 0:00:12]} 73. Rf5+ {[%emt 0:00:14]} Kg6 {[%emt 0:01:33]} 74. Rf2 {[%emt 0:01:31]} Ra7 {[%emt 0:00:00]} 75. Ra2 {[%emt 0:00:05]} Kf6 {[%emt 0:00:15]} 76. Kd4 {[%emt 0:00:20]} Ra4+ {[%emt 0:00:11]} 77. Kc5 {[%emt 0:00:13]} Ke5 {[%emt 0:00:22]} 78. d6 {[%emt 0:00:16]} Rd4 {[%emt 0:00:43]} 79. Rh2 {[%emt 0:01:18]} Rd1 {[%emt 0:00:11]} 80. Ra2 {[%emt 0:00:36]} 1/2-1/2

[Event "Icelandic Team-ch Kvika Leagu 2023-24"]
[Site "Reykjavik"]
[Date "2024.02.29"]
[Round "1.12"]
[White "Thorfinnsson, Bragi"]
[Black "Nagy, Gabor"]
[Result "0-1"]
[ECO "B23"]
[WhiteElo "2397"]
[BlackElo "2450"]
[Annotator "RC"]
[PlyCount "64"]
[EventDate "2024.02.29"]
[EventType "team-tourn"]
[EventCountry "ISL"]
[SourceTitle "playchess.com"]
[Source "ChessBase"]
[SourceQuality "1"]
[TimeControl "40/5400+30:900+30"]

1. e4 {[%emt 0:04:40]} c5 {[%emt 0:00:29]} 2. Nc3 {[%emt 0:01:05]} a6 {[%emt 0:02:13]} 3. g3 {[%emt 0:01:59]} b5 {[%emt 0:01:14]} 4. Bg2 {[%emt 0:00:46]} Bb7 {[%emt 0:00:13]} 5. d3 {[%emt 0:03:43]} e6 {[%emt 0:01:05]} 6. Nh3 {[%emt 0:00:12]} Nc6 {[%emt 0:04:40]} 7. O-O {[%emt 0:01:44]} Be7 {[%emt 0:01:50]} 8. f4 {[%emt 0:07:27]} Qc7 {[%emt 0:00:22]} 9. f5 {[%emt 0:06:15]} Nf6 {[%emt 0:02:47]} 10. Bf4 {[%emt 0:02:08]} Bd6 {[%emt 0:00:33]} 11. Qd2 {[%emt 0:04:28]} O-O {[%emt 0:05:51]} 12. Rae1 {[%emt 0:05:04]} Be5 {[%emt 0:02:02]} 13. Kh1 {[%emt 0:03:51]} Rae8 {[%emt 0:02:25]} 14. Bg5 {[%emt 0:06:18]} Kh8 {[%emt 0:04:33]} 15. Nf4 {[%emt 0:08:12]} Nd4 {[%emt 0:06:17]} 16. Bxf6 {[%emt 0:04:01]} Bxf6 {[%emt 0:00:28]} 17. Nh5 {[%emt 0:00:17]} Be5 {[%emt 0:03:36]} 18. Nd1 {[%emt 0:12:29]} g6 {[%emt 0:03:32]} 19. fxg6 {[%emt 0:02:41]} fxg6 {[%emt 0:00:28]} 20. Nf4 {[%emt 0:01:59]} Bg7 {[%emt 0:00:15]} 21. Ne3 {[%emt 0:01:51]} Nc6 {[%emt 0:01:10]} 22. c3 {[%emt 0:00:55]} a5 {[%emt 0:06:25]} 23. Qc2 {[%emt 0:03:12]} Ba6 {[%emt 0:01:28]} 24. Ne2 {[%emt 0:03:29]} Ne5 {[%emt 0:01:51]} 25. Rxf8+ {[%emt 0:02:31]} Rxf8 {[%emt 0:00:16]} 26. Rf1 {[%emt 0:01:28]} Rc8 {[%emt 0:02:11]} 27. Qd1 {[%emt 0:03:00]} b4 {[%emt 0:00:24]} 28. c4 {[%emt 0:01:50]} Qd6 {[%emt 0:00:34]} 29. Nc1 {[%emt 0:01:49]} Qd4 {[%emt 0:03:16]} 30. Qe2 {[%emt 0:02:30]} Bh6 {[%emt 0:00:16]} 31. Re1 {[%emt 0:00:36]} a4 {[%emt 0:00:12]} 32. h3 {[%emt 0:02:33]} Rf8 {[%emt 0:00:14]} 0-1

[Event "Icelandic Team-ch Kvika Leagu 2023-24"]
[Site "Reykjavik"]
[Date "2024.02.29"]
[Round "1.13"]
[White "Arngrimsson, Dagur"]
[Black "Thorfinnsson, Bjorn"]
[Result "1-0"]
[ECO "A62"]
[WhiteElo "2366"]
[BlackElo "2353"]
[Annotator "RC"]
[PlyCount "43"]
[EventDate "2024.02.29"]
[EventType "team-tourn"]
[EventCountry "ISL"]
[SourceTitle "playchess.com"]
[Source "ChessBase"]
[SourceQuality "1"]
[TimeControl "40/5400+30:900+30"]

1. d4 {[%emt 0:00:19]} Nf6 {[%emt 0:04:36]} 2. c4 {[%emt 0:00:59]} c5 {[%emt 0:00:10]} 3. d5 {[%emt 0:00:15]} e6 {[%emt 0:00:10]} 4. Nc3 {[%emt 0:01:14]} exd5 {[%emt 0:00:09]} 5. cxd5 {[%emt 0:00:11]} d6 {[%emt 0:00:05]} 6. Nf3 {[%emt 0:00:31]} g6 {[%emt 0:00:20]} 7. g3 {[%emt 0:00:11]} Bg7 {[%emt 0:00:21]} 8. Bg2 {[%emt 0:00:07]} O-O {[%emt 0:00:47]} 9. O-O {[%emt 0:00:08]} Re8 {[%emt 0:01:13]} 10. Bf4 {[%emt 0:02:04]} Na6 {[%emt 0:01:58]} 11. Re1 {[%emt 0:04:18]} Bg4 {[%emt 0:16:39]} 12. e4 {[%emt 0:22:27]} Nd7 {[%emt 0:02:42]} 13. Qb3 {[%emt 0:05:54]} Nb6 {[%emt 0:24:16]} 14. Nb5 {[%emt 0:07:16]} Nc8 {[%emt 0:03:08]} 15. Nd2 {[%emt 0:05:21]} Nc7 {[%emt 0:08:38]} 16. h3 {[%emt 0:04:43]} Nxb5 {[%emt 0:07:31]} 17. Qxb5 {[%emt 0:00:27]} Qd7 {[%emt 0:00:13]} 18. Qf1 {[%emt 0:01:39]} Bh5 {[%emt 0:01:29]} 19. g4 {[%emt 0:12:14]} Bxg4 {[%emt 0:00:04]} 20. hxg4 {[%emt 0:00:05]} Qxg4 {[%emt 0:00:04]} 21. Bg3 {[%emt 0:02:37]} Bxb2 {[%emt 0:00:07]} 22. Qb5 {[%emt 0:00:56]} 1-0

[Event "Icelandic Team-ch Kvika Leagu 2023-24"]
[Site "Reykjavik"]
[Date "2024.02.29"]
[Round "1.14"]
[White "Kjartansson, David"]
[Black "Petersson, Baldur Teodor"]
[Result "1-0"]
[ECO "B23"]
[WhiteElo "2286"]
[BlackElo "2190"]
[Annotator "RC"]
[PlyCount "75"]
[EventDate "2024.02.29"]
[EventType "team-tourn"]
[EventCountry "ISL"]
[SourceTitle "playchess.com"]
[Source "ChessBase"]
[SourceQuality "1"]
[TimeControl "40/5400+30:900+30"]

1. e4 {[%emt 0:00:58]} c5 {[%emt 0:01:15]} 2. Nc3 {[%emt 0:00:14]} e6 {[%emt 0:00:18]} 3. f4 {[%emt 0:00:32]} Nc6 {[%emt 0:01:17]} 4. Nf3 {[%emt 0:00:09]} d6 {[%emt 0:01:11]} 5. Bc4 {[%emt 0:00:34]} g6 {[%emt 0:01:35]} 6. O-O {[%emt 0:00:26]} Bg7 {[%emt 0:01:01]} 7. d4 {[%emt 0:00:42]} cxd4 {[%emt 0:03:47]} 8. Nb5 {[%emt 0:00:07]} Nge7 {[%emt 0:02:42]} 9. Bb3 {[%emt 0:00:13]} O-O {[%emt 0:05:57]} 10. Nbxd4 {[%emt 0:01:13]} d5 {[%emt 0:02:44]} 11. e5 {[%emt 0:02:44]} Nxd4 {[%emt 0:09:08]} 12. Nxd4 {[%emt 0:03:13]} Nc6 {[%emt 0:00:38]} 13. Be3 {[%emt 0:01:32]} Qa5 {[%emt 0:08:33]} 14. Kh1 {[%emt 0:02:54]} Nxd4 {[%emt 0:09:30]} 15. Bxd4 {[%emt 0:00:29]} b6 {[%emt 0:02:54]} 16. c3 {[%emt 0:02:03]} Ba6 {[%emt 0:07:09]} 17. Rf3 {[%emt 0:00:26]} Bc4 {[%emt 0:06:31]} 18. Bc2 {[%emt 0:08:11]} Qb5 {[%emt 0:00:21]} 19. Rf2 {[%emt 0:01:46]} Qc6 {[%emt 0:01:40]} 20. Qd2 {[%emt 0:09:16]} a5 {[%emt 0:06:49]} 21. Qe3 {[%emt 0:00:29]} Rfb8 {[%emt 0:01:48]} 22. g4 {[%emt 0:00:27]} Ba6 {[%emt 0:04:39]} 23. Rg1 {[%emt 0:07:46]} b5 {[%emt 0:04:56]} 24. f5 {[%emt 0:02:08]} b4 {[%emt 0:04:14]} 25. h4 {[%emt 0:02:50]} Re8 {[%emt 0:08:14]} 26. f6 {[%emt 0:02:27]} Bf8 {[%emt 0:00:08]} 27. h5 {[%emt 0:00:12]} Rec8 {[%emt 0:02:14]} 28. Rg3 {[%emt 0:04:25]} bxc3 {[%emt 0:01:46]} 29. bxc3 {[%emt 0:00:09]} Rc7 {[%emt 0:00:39]} 30. Rh3 {[%emt 0:00:59]} Raa7 {[%emt 0:00:42]} 31. hxg6 {[%emt 0:09:08]} fxg6 {[%emt 0:00:06]} 32. Qg5 {[%emt 0:00:24]} Qe8 {[%emt 0:01:02]} 33. Bxa7 {[%emt 0:01:20]} Rxa7 {[%emt 0:00:10]} 34. f7+ {[%emt 0:02:16]} Rxf7 {[%emt 0:00:08]} 35. Bxg6 {[%emt 0:00:17]} hxg6 {[%emt 0:00:41]} 36. Qxg6+ {[%emt 0:00:07]} Bg7 {[%emt 0:00:22]} 37. Rxf7 {[%emt 0:00:19]} Qxf7 {[%emt 0:00:09]} 38. Rh8+ {[%emt 0:00:13]} 1-0